[Event "*** Titled Tuesday Blitz"]
[Site "Chess.com"]
[Date "2021.03.16"]
[Round "1"]
[White "ARTHURMOTIVATOR"]
[Black "Szparu"]
[Result "1-0"]
[WhiteElo "2363"]
[BlackElo "2647"]
[TimeControl "180+1"]
[EndTime "10:08:28 PDT"]
[Termination "ARTHURMOTIVATOR won by resignation"]

1. e4 {[%clk 0:02:59.6]} 1... c5 {[%clk 0:02:56.4]} 2. b3 {[%clk 0:02:58]} 2...
d6 {[%clk 0:02:37.7]} 3. Bb2 {[%clk 0:02:54.6]} 3... Nc6 {[%clk 0:02:31.3]} 4.
Bb5 {[%clk 0:02:51.6]} 4... Bd7 {[%clk 0:02:29.2]} 5. f4 {[%clk 0:02:49]} 5...
Nf6 {[%clk 0:02:18.7]} 6. d3 {[%clk 0:02:44.4]} 6... Qa5+ {[%clk 0:02:14.1]} 7.
Nc3 {[%clk 0:02:42.2]} 7... a6 {[%clk 0:02:14.1]} 8. Bxc6 {[%clk 0:02:40.7]}
8... Bxc6 {[%clk 0:02:14.3]} 9. Nf3 {[%clk 0:02:40.6]} 9... e6 {[%clk
0:02:00.3]} 10. O-O {[%clk 0:02:38.3]} 10... Be7 {[%clk 0:01:40]} 11. Qe1 {[%clk
0:02:29.8]} 11... b5 {[%clk 0:01:29.2]} 12. e5 {[%clk 0:02:12.8]} 12... Nd5
{[%clk 0:00:38.1]} 13. Nxd5 {[%clk 0:02:04.6]} 13... Qxe1 {[%clk 0:00:37.6]} 14.
Nc7+ {[%clk 0:02:01.7]} 14... Kd7 {[%clk 0:00:37.3]} 15. Raxe1 {[%clk
0:01:59.8]} 15... Kxc7 {[%clk 0:00:36.9]} 16. exd6+ {[%clk 0:01:59.4]} 16...
Bxd6 {[%clk 0:00:36.8]} 17. Bxg7 {[%clk 0:01:58.3]} 17... Rhg8 {[%clk
0:00:35.6]} 18. Be5 {[%clk 0:01:57]} 18... Rg4 {[%clk 0:00:27.2]} 19. g3 {[%clk
0:01:40.9]} 19... Bb7 {[%clk 0:00:17.4]} 20. Bxd6+ {[%clk 0:01:35.2]} 20... Kxd6
{[%clk 0:00:17.4]} 21. Ne5 {[%clk 0:01:30.9]} 21... Rg7 {[%clk 0:00:17]} 22. f5
{[%clk 0:01:27.6]} 22... f6 {[%clk 0:00:12.6]} 23. Nf3 {[%clk 0:01:18.9]} 23...
e5 {[%clk 0:00:12.7]} 24. Nd2 {[%clk 0:01:18.2]} 24... Kc6 {[%clk 0:00:09.3]}
25. Ne4 {[%clk 0:01:17.4]} 25... Rf8 {[%clk 0:00:09.9]} 26. Kf2 {[%clk
0:01:13.4]} 26... Kb6 {[%clk 0:00:10]} 27. Ke3 {[%clk 0:01:11.1]} 27... Bd5
{[%clk 0:00:08]} 28. Ra1 {[%clk 0:01:03.4]} 28... a5 {[%clk 0:00:05.4]} 29. a3
{[%clk 0:01:01.7]} 29... Kc6 {[%clk 0:00:05.2]} 30. Rab1 {[%clk 0:00:59.6]}
30... b4 {[%clk 0:00:05.4]} 31. axb4 {[%clk 0:00:58.9]} 31... cxb4 {[%clk
0:00:05.8]} 32. Ra1 {[%clk 0:00:59.3]} 32... Kb6 {[%clk 0:00:06]} 33. Ra2 {[%clk
0:00:53.8]} 33... Rc7 {[%clk 0:00:06]} 34. Rfa1 {[%clk 0:00:51.4]} 34... Bxe4
{[%clk 0:00:06.3]} 35. dxe4 {[%clk 0:00:47.7]} 35... Rc5 {[%clk 0:00:06.9]} 36.
Rd1 {[%clk 0:00:45.1]} 36... Rc3+ {[%clk 0:00:06.8]} 37. Ke2 {[%clk 0:00:41.6]}
37... Rfc8 {[%clk 0:00:05.2]} 38. Rd6+ {[%clk 0:00:39.6]} 38... Kb7 {[%clk
0:00:04.4]} 39. Rxa5 {[%clk 0:00:36.9]} 39... Rxc2+ {[%clk 0:00:04.5]} 40. Kf3
{[%clk 0:00:37.6]} 40... R8c3+ {[%clk 0:00:03.9]} 41. Kg4 {[%clk 0:00:37.5]}
41... Rxb3 {[%clk 0:00:04.3]} 42. Rxf6 {[%clk 0:00:37.5]} 42... Rbb2 {[%clk
0:00:03.9]} 43. Rxe5 {[%clk 0:00:34.5]} 43... Rc7 {[%clk 0:00:03.7]} 44. Rb5+
{[%clk 0:00:32]} 44... Ka7 {[%clk 0:00:03.1]} 45. e5 {[%clk 0:00:27.4]} 45...
Rc4+ {[%clk 0:00:03.2]} 46. Kg5 {[%clk 0:00:24.8]} 46... Rxh2 {[%clk 0:00:02.6]}
47. e6 {[%clk 0:00:18.2]} 47... Rg2 {[%clk 0:00:03.1]} 48. Rf7+ {[%clk
0:00:17.3]} 48... Ka6 {[%clk 0:00:03]} 49. Rbb7 {[%clk 0:00:17.7]} 49... Rxg3+
{[%clk 0:00:03.1]} 50. Kf6 {[%clk 0:00:18.6]} 50... b3 {[%clk 0:00:02.3]} 51.
Ra7+ {[%clk 0:00:17.8]} 51... Kb5 {[%clk 0:00:02.7]} 52. Rfb7+ {[%clk
0:00:13.6]} 52... Kc6 {[%clk 0:00:03.2]} 53. Rc7+ {[%clk 0:00:13.7]} 53... Kd5
{[%clk 0:00:03.7]} 54. Rxc4 {[%clk 0:00:12.8]} 54... Kxc4 {[%clk 0:00:04.3]} 55.
e7 {[%clk 0:00:12.9]} 55... Re3 {[%clk 0:00:04.9]} 56. Kf7 {[%clk 0:00:11.7]}
56... b2 {[%clk 0:00:05.4]} 57. Rb7 {[%clk 0:00:12.4]} 57... Kc3 {[%clk
0:00:05.8]} 58. f6 {[%clk 0:00:11.6]} 58... h5 {[%clk 0:00:05.2]} 59. e8=Q
{[%clk 0:00:10.5]} 59... Rxe8 {[%clk 0:00:05.2]} 60. Kxe8 {[%clk 0:00:10.9]}
60... h4 {[%clk 0:00:05.6]} 61. f7 {[%clk 0:00:11.1]} 61... Kc2 {[%clk
0:00:06.1]} 62. f8=Q {[%clk 0:00:10.7]} 62... b1=Q {[%clk 0:00:07]} 63. Qf5+
{[%clk 0:00:10.2]} 1-0

[Event "*** Titled Tuesday Blitz"]
[Site "Chess.com"]
[Date "2021.03.16"]
[Round "1"]
[White "Problematique_99"]
[Black "Fandorine"]
[Result "1/2-1/2"]
[WhiteElo "2470"]
[BlackElo "2884"]
[TimeControl "180+1"]
[EndTime "10:08:37 PDT"]
[Termination "Game drawn by repetition"]

1. Nf3 {[%clk 0:02:58.8]} 1... Nf6 {[%clk 0:03:00]} 2. g3 {[%clk 0:02:58.5]}
2... b6 {[%clk 0:02:55.4]} 3. Bg2 {[%clk 0:02:57.3]} 3... Bb7 {[%clk 0:02:55.6]}
4. O-O {[%clk 0:02:57]} 4... g6 {[%clk 0:02:56.1]} 5. c4 {[%clk 0:02:51.2]} 5...
Bg7 {[%clk 0:02:55.7]} 6. Nc3 {[%clk 0:02:50.7]} 6... O-O {[%clk 0:02:55.9]} 7.
d4 {[%clk 0:02:48.7]} 7... Ne4 {[%clk 0:02:52.8]} 8. Nxe4 {[%clk 0:02:46.4]}
8... Bxe4 {[%clk 0:02:52.3]} 9. Be3 {[%clk 0:02:47.2]} 9... d6 {[%clk
0:02:47.1]} 10. Qd2 {[%clk 0:02:43]} 10... Nd7 {[%clk 0:02:45.6]} 11. Bh6 {[%clk
0:02:39.1]} 11... c5 {[%clk 0:02:43.1]} 12. Bxg7 {[%clk 0:02:37.6]} 12... Kxg7
{[%clk 0:02:44]} 13. Qe3 {[%clk 0:02:36.1]} 13... Nf6 {[%clk 0:02:43.1]} 14.
Rfd1 {[%clk 0:02:29.7]} 14... Qc7 {[%clk 0:02:41.1]} 15. Rac1 {[%clk 0:02:19.5]}
15... Rac8 {[%clk 0:02:36.7]} 16. b3 {[%clk 0:02:12.8]} 16... a6 {[%clk
0:02:28]} 17. Ne1 {[%clk 0:02:00.3]} 17... Bf5 {[%clk 0:02:14.3]} 18. h3 {[%clk
0:01:56.8]} 18... h5 {[%clk 0:02:13.2]} 19. Nf3 {[%clk 0:01:52.1]} 19... Be4
{[%clk 0:02:10.8]} 20. Ne1 {[%clk 0:01:49.3]} 20... Qb7 {[%clk 0:02:08.1]} 21.
Bxe4 {[%clk 0:01:44.7]} 21... Qxe4 {[%clk 0:02:04.1]} 22. Qxe4 {[%clk
0:01:44.5]} 22... Nxe4 {[%clk 0:02:05]} 23. Kg2 {[%clk 0:01:37.6]} 23... Rb8
{[%clk 0:01:55.9]} 24. f3 {[%clk 0:01:26.4]} 24... Nf6 {[%clk 0:01:54.6]} 25. e4
{[%clk 0:01:24.5]} 25... cxd4 {[%clk 0:01:51.5]} 26. Rxd4 {[%clk 0:01:23.5]}
26... Rfc8 {[%clk 0:01:51.4]} 27. Rdd1 {[%clk 0:01:13]} 27... Nd7 {[%clk
0:01:24.8]} 28. Nd3 {[%clk 0:01:12.9]} 28... Nc5 {[%clk 0:01:22.8]} 29. Nxc5
{[%clk 0:01:06.3]} 29... Rxc5 {[%clk 0:01:07.3]} 30. Rd5 {[%clk 0:01:04]} 30...
Rc7 {[%clk 0:01:06.1]} 31. Rcd1 {[%clk 0:01:00.3]} 31... b5 {[%clk 0:00:50.3]}
32. cxb5 {[%clk 0:00:54.5]} 32... Rxb5 {[%clk 0:00:48.8]} 33. R1d2 {[%clk
0:00:40]} 33... Rxd5 {[%clk 0:00:43.4]} 34. exd5 {[%clk 0:00:40.9]} 34... Kf6
{[%clk 0:00:43.7]} 35. f4 {[%clk 0:00:33.4]} 35... Kf5 {[%clk 0:00:41.5]} 36.
Re2 {[%clk 0:00:30.1]} 36... h4 {[%clk 0:00:25.8]} 37. gxh4 {[%clk 0:00:28.1]}
37... Kxf4 {[%clk 0:00:22.3]} 38. Rf2+ {[%clk 0:00:28.1]} 38... Ke5 {[%clk
0:00:22.6]} 39. Rxf7 {[%clk 0:00:25.3]} 39... Kxd5 {[%clk 0:00:23]} 40. Rg7
{[%clk 0:00:24.7]} 40... Rc2+ {[%clk 0:00:21.6]} 41. Kg3 {[%clk 0:00:24.7]}
41... Rxa2 {[%clk 0:00:19.1]} 42. Rxg6 {[%clk 0:00:24.4]} 42... Rb2 {[%clk
0:00:15.5]} 43. h5 {[%clk 0:00:18.2]} 43... Rxb3+ {[%clk 0:00:15.7]} 44. Kg4
{[%clk 0:00:18.3]} 44... Rb8 {[%clk 0:00:11.4]} 45. h6 {[%clk 0:00:16.9]} 45...
e5 {[%clk 0:00:11.9]} 46. Rg7 {[%clk 0:00:14.7]} 46... e4 {[%clk 0:00:10.3]} 47.
h7 {[%clk 0:00:13.5]} 47... Rh8 {[%clk 0:00:10.8]} 48. Ra7 {[%clk 0:00:13.2]}
48... Kd4 {[%clk 0:00:08]} 49. Rxa6 {[%clk 0:00:12.9]} 49... Rxh7 {[%clk
0:00:07.5]} 50. Rxd6+ {[%clk 0:00:12.9]} 50... Ke5 {[%clk 0:00:07.4]} 51. Rd8
{[%clk 0:00:12.2]} 51... Rg7+ {[%clk 0:00:07.8]} 52. Kh5 {[%clk 0:00:11.3]}
52... e3 {[%clk 0:00:07]} 53. Re8+ {[%clk 0:00:11.3]} 53... Kf4 {[%clk
0:00:07.6]} 54. h4 {[%clk 0:00:11.6]} 54... Rg2 {[%clk 0:00:04.4]} 55. Kh6
{[%clk 0:00:09.6]} 55... e2 {[%clk 0:00:04.6]} 56. h5 {[%clk 0:00:09.1]} 56...
Kf3 {[%clk 0:00:05]} 57. Kh7 {[%clk 0:00:08.5]} 57... Rg4 {[%clk 0:00:05.2]} 58.
Rxe2 {[%clk 0:00:05.6]} 58... Kxe2 {[%clk 0:00:05.4]} 59. h6 {[%clk 0:00:06.5]}
59... Kf3 {[%clk 0:00:05.8]} 60. Kh8 {[%clk 0:00:06.8]} 60... Kf4 {[%clk
0:00:06.1]} 61. h7 {[%clk 0:00:07.7]} 61... Kg5 {[%clk 0:00:06.3]} 62. Kg7
{[%clk 0:00:06.8]} 62... Kh5+ {[%clk 0:00:05.8]} 63. Kf7 {[%clk 0:00:06.7]}
63... Rf4+ {[%clk 0:00:06.1]} 64. Kg7 {[%clk 0:00:07]} 64... Rg4+ {[%clk
0:00:05.5]} 65. Kf7 {[%clk 0:00:07.3]} 65... Rf4+ {[%clk 0:00:05.7]} 66. Kg7
{[%clk 0:00:07.6]} 66... Rg4+ {[%clk 0:00:05.8]} 1/2-1/2

[Event "*** Titled Tuesday Blitz"]
[Site "Chess.com"]
[Date "2021.03.16"]
[Round "1"]
[White "XDPS"]
[Black "CakeinSpace2002"]
[Result "1-0"]
[WhiteElo "2807"]
[BlackElo "2430"]
[TimeControl "180+1"]
[EndTime "10:08:46 PDT"]
[Termination "XDPS won on time"]

1. e4 {[%clk 0:03:00.9]} 1... c5 {[%clk 0:02:57.5]} 2. Nf3 {[%clk 0:03:00.7]}
2... d6 {[%clk 0:02:57.7]} 3. Bb5+ {[%clk 0:02:59]} 3... Nd7 {[%clk 0:02:55.3]}
4. O-O {[%clk 0:02:58.6]} 4... Nf6 {[%clk 0:02:53.9]} 5. Re1 {[%clk 0:02:57.7]}
5... e5 {[%clk 0:02:48]} 6. c3 {[%clk 0:02:55.8]} 6... a6 {[%clk 0:02:45.3]} 7.
Bxd7+ {[%clk 0:02:52.8]} 7... Bxd7 {[%clk 0:02:42.5]} 8. d4 {[%clk 0:02:53.7]}
8... Qc7 {[%clk 0:02:41.8]} 9. Na3 {[%clk 0:02:52.6]} 9... b5 {[%clk 0:02:25.6]}
10. Bg5 {[%clk 0:02:50.6]} 10... Be7 {[%clk 0:02:24.1]} 11. Nc2 {[%clk
0:02:50.8]} 11... O-O {[%clk 0:02:22.9]} 12. Ne3 {[%clk 0:02:50.6]} 12... Be6
{[%clk 0:02:05.6]} 13. dxe5 {[%clk 0:02:22.4]} 13... dxe5 {[%clk 0:02:04.2]} 14.
Bxf6 {[%clk 0:02:22.8]} 14... Bxf6 {[%clk 0:02:02.5]} 15. Nd5 {[%clk 0:02:23.1]}
15... Bxd5 {[%clk 0:01:46]} 16. Qxd5 {[%clk 0:02:16.4]} 16... Rfd8 {[%clk
0:01:40]} 17. Qb3 {[%clk 0:02:16.2]} 17... c4 {[%clk 0:01:39.5]} 18. Qc2 {[%clk
0:02:16.2]} 18... Be7 {[%clk 0:01:38.9]} 19. a4 {[%clk 0:02:16.4]} 19... Bc5
{[%clk 0:01:37.3]} 20. Red1 {[%clk 0:02:15.5]} 20... f6 {[%clk 0:01:31.7]} 21.
Rxd8+ {[%clk 0:02:12.2]} 21... Rxd8 {[%clk 0:01:30.8]} 22. Rd1 {[%clk
0:02:12.4]} 22... Rxd1+ {[%clk 0:01:20.5]} 23. Qxd1 {[%clk 0:02:12.2]} 23... Qd6
{[%clk 0:01:20.6]} 24. Qa1 {[%clk 0:01:39.6]} 24... b4 {[%clk 0:01:13]} 25. Qf1
{[%clk 0:01:32.3]} 25... Qe6 {[%clk 0:00:47.1]} 26. Nd2 {[%clk 0:01:31.1]} 26...
bxc3 {[%clk 0:00:35.4]} 27. bxc3 {[%clk 0:01:32]} 27... Qb6 {[%clk 0:00:33.2]}
28. g3 {[%clk 0:01:15.9]} 28... h6 {[%clk 0:00:26]} 29. Kg2 {[%clk 0:01:04.8]}
29... Kh7 {[%clk 0:00:25]} 30. Nxc4 {[%clk 0:00:17.1]} 30... Qb3 {[%clk
0:00:23.9]} 31. Qd3 {[%clk 0:00:07.3]} 31... Qxa4 {[%clk 0:00:19.6]} 32. Nd2
{[%clk 0:00:07.5]} 32... Qa2 {[%clk 0:00:15.1]} 33. h4 {[%clk 0:00:07.6]} 33...
a5 {[%clk 0:00:14.5]} 34. f3 {[%clk 0:00:05.8]} 34... a4 {[%clk 0:00:12.8]} 35.
Kh3 {[%clk 0:00:05.2]} 35... Qe6+ {[%clk 0:00:12]} 36. g4 {[%clk 0:00:04.6]}
36... a3 {[%clk 0:00:12.9]} 37. c4 {[%clk 0:00:03.3]} 37... Qb6 {[%clk
0:00:12.1]} 38. Nb3 {[%clk 0:00:03.3]} 38... Qb4 {[%clk 0:00:11.6]} 39. Qc2
{[%clk 0:00:03.3]} 39... Bd4 {[%clk 0:00:11]} 40. c5 {[%clk 0:00:02.9]} 40... a2
{[%clk 0:00:10.1]} 41. Qxa2 {[%clk 0:00:02.6]} 41... Bxc5 {[%clk 0:00:09.9]} 42.
Qc2 {[%clk 0:00:03.2]} 42... Bd4 {[%clk 0:00:09.8]} 43. Nc1 {[%clk 0:00:03]}
43... Qe1 {[%clk 0:00:09.2]} 44. Nd3 {[%clk 0:00:02.5]} 44... Qf1+ {[%clk
0:00:09]} 45. Kg3 {[%clk 0:00:02.3]} 45... Qg1+ {[%clk 0:00:09.1]} 46. Qg2
{[%clk 0:00:01.9]} 46... Qxg2+ {[%clk 0:00:08.2]} 47. Kxg2 {[%clk 0:00:01]}
47... g6 {[%clk 0:00:08.6]} 48. Nb4 {[%clk 0:00:01.6]} 48... Kg7 {[%clk
0:00:08.4]} 49. Nd5 {[%clk 0:00:02.5]} 49... Bb2 {[%clk 0:00:07.7]} 50. h5
{[%clk 0:00:02.9]} 50... Bd4 {[%clk 0:00:06.2]} 51. hxg6 {[%clk 0:00:02.8]}
51... Kxg6 {[%clk 0:00:07.1]} 52. Kh3 {[%clk 0:00:03.7]} 52... h5 {[%clk
0:00:06.4]} 53. Ne7+ {[%clk 0:00:03.1]} 53... Kf7 {[%clk 0:00:05.6]} 54. Nf5
{[%clk 0:00:02.9]} 54... hxg4+ {[%clk 0:00:05.5]} 55. Kxg4 {[%clk 0:00:03.8]}
55... Bc3 {[%clk 0:00:04.7]} 56. Ne3 {[%clk 0:00:03.6]} 56... Ke6 {[%clk
0:00:04]} 57. Kh5 {[%clk 0:00:03.7]} 57... Ba1 {[%clk 0:00:04.2]} 58. Kg6 {[%clk
0:00:04]} 58... Bd4 {[%clk 0:00:04.7]} 59. Ng4 {[%clk 0:00:04.4]} 59... Ba1
{[%clk 0:00:03.6]} 60. Nxf6 {[%clk 0:00:04.6]} 60... Bd4 {[%clk 0:00:03.9]} 61.
Ng4 {[%clk 0:00:04.8]} 61... Ba1 {[%clk 0:00:04.1]} 62. Nh6 {[%clk 0:00:05.3]}
62... Bd4 {[%clk 0:00:04.2]} 63. Nf5 {[%clk 0:00:05.8]} 63... Ba1 {[%clk
0:00:04.4]} 64. Ng7+ {[%clk 0:00:06.3]} 64... Kd6 {[%clk 0:00:03.4]} 65. Kf5
{[%clk 0:00:06.7]} 65... Bd4 {[%clk 0:00:03]} 66. Ne8+ {[%clk 0:00:06.8]} 66...
Kc5 {[%clk 0:00:02.2]} 67. Nf6 {[%clk 0:00:07.7]} 67... Kc4 {[%clk 0:00:01.9]}
68. Ng4 {[%clk 0:00:06.8]} 1-0

[Event "*** Titled Tuesday Blitz"]
[Site "Chess.com"]
[Date "2021.03.16"]
[Round "2"]
[White "sokidze"]
[Black "eightbyeightchess"]
[Result "1-0"]
[WhiteElo "2709"]
[BlackElo "2373"]
[TimeControl "180+1"]
[EndTime "10:13:03 PDT"]
[Termination "sokidze won by resignation"]

1. e4 {[%clk 0:03:00.9]} 1... e6 {[%clk 0:02:56.9]} 2. d4 {[%clk 0:03:00.5]}
2... d5 {[%clk 0:02:57.4]} 3. Nd2 {[%clk 0:03:00.6]} 3... Nf6 {[%clk 0:02:57]}
4. e5 {[%clk 0:03:00.7]} 4... Nfd7 {[%clk 0:02:57.3]} 5. Bd3 {[%clk 0:03:01.3]}
5... c5 {[%clk 0:02:57.4]} 6. c3 {[%clk 0:03:01.7]} 6... Nc6 {[%clk 0:02:57.4]}
7. Ne2 {[%clk 0:03:02]} 7... cxd4 {[%clk 0:02:57.2]} 8. cxd4 {[%clk 0:03:02.4]}
8... f6 {[%clk 0:02:57.8]} 9. exf6 {[%clk 0:03:02.2]} 9... Nxf6 {[%clk
0:02:58.7]} 10. O-O {[%clk 0:03:00.7]} 10... Qc7 {[%clk 0:02:58.8]} 11. Nf3
{[%clk 0:03:00.4]} 11... Bd6 {[%clk 0:02:58.5]} 12. h3 {[%clk 0:03:00.7]} 12...
O-O {[%clk 0:02:58.6]} 13. Be3 {[%clk 0:03:01.3]} 13... Bd7 {[%clk 0:02:58]} 14.
Nc3 {[%clk 0:02:58.4]} 14... a6 {[%clk 0:02:57.8]} 15. Re1 {[%clk 0:02:57.9]}
15... Be8 {[%clk 0:02:57.8]} 16. Ng5 {[%clk 0:02:57]} 16... e5 {[%clk
0:02:40.8]} 17. dxe5 {[%clk 0:02:33.6]} 17... Nxe5 {[%clk 0:02:30.9]} 18. Ne6
{[%clk 0:02:32.8]} 18... Qf7 {[%clk 0:02:16.6]} 19. Nxf8 {[%clk 0:02:31.5]}
19... Qxf8 {[%clk 0:02:15.9]} 20. Bd4 {[%clk 0:02:17.6]} 20... Bh5 {[%clk
0:02:12.7]} 21. Be2 {[%clk 0:02:14.3]} 21... Re8 {[%clk 0:02:01.3]} 22. Bxh5
{[%clk 0:02:08.3]} 22... Nxh5 {[%clk 0:02:02.2]} 23. Qxh5 {[%clk 0:02:08.5]} 1-0

[Event "*** Titled Tuesday Blitz"]
[Site "Chess.com"]
[Date "2021.03.16"]
[Round "2"]
[White "Reader777"]
[Black "Trickov"]
[Result "1-0"]
[WhiteElo "2734"]
[BlackElo "2383"]
[TimeControl "180+1"]
[EndTime "10:13:04 PDT"]
[Termination "Reader777 won by resignation"]

1. d4 {[%clk 0:03:00.9]} 1... d5 {[%clk 0:02:59.2]} 2. c4 {[%clk 0:03:01.2]}
2... c6 {[%clk 0:02:58.6]} 3. Nf3 {[%clk 0:03:01.2]} 3... Nf6 {[%clk 0:02:57.7]}
4. g3 {[%clk 0:03:01.3]} 4... dxc4 {[%clk 0:02:57]} 5. Bg2 {[%clk 0:03:01.5]}
5... Bf5 {[%clk 0:02:56.4]} 6. O-O {[%clk 0:03:00.8]} 6... e6 {[%clk 0:02:55.6]}
7. Ne5 {[%clk 0:03:00.7]} 7... Be7 {[%clk 0:02:50.6]} 8. Nc3 {[%clk 0:02:59.6]}
8... O-O {[%clk 0:02:42.1]} 9. Nxc4 {[%clk 0:02:59.5]} 9... Nbd7 {[%clk
0:02:40.8]} 10. e4 {[%clk 0:02:59.8]} 10... Bg6 {[%clk 0:02:40.5]} 11. Be3
{[%clk 0:02:59.7]} 11... b5 {[%clk 0:02:35.7]} 12. Nd2 {[%clk 0:02:57.7]} 12...
Nb6 {[%clk 0:02:31.3]} 13. a3 {[%clk 0:02:43.3]} 13... Rc8 {[%clk 0:02:29.7]}
14. Rc1 {[%clk 0:02:41.7]} 14... a6 {[%clk 0:02:28.8]} 15. Qe2 {[%clk
0:02:38.2]} 15... c5 {[%clk 0:02:25.2]} 16. dxc5 {[%clk 0:02:30.7]} 16... Bxc5
{[%clk 0:02:23.5]} 17. Bxc5 {[%clk 0:02:19.7]} 17... Rxc5 {[%clk 0:02:23]} 18.
e5 {[%clk 0:02:19.4]} 18... Nfd5 {[%clk 0:02:19.3]} 19. Nce4 {[%clk 0:02:13.2]}
19... Qe7 {[%clk 0:01:59.3]} 20. Nxc5 {[%clk 0:02:11.3]} 1-0

[Event "*** Titled Tuesday Blitz"]
[Site "Chess.com"]
[Date "2021.03.16"]
[Round "2"]
[White "Aleksandar-Topalov"]
[Black "anon102030"]
[Result "0-1"]
[WhiteElo "2381"]
[BlackElo "2708"]
[TimeControl "180+1"]
[EndTime "10:13:50 PDT"]
[Termination "anon102030 won by resignation"]

1. b3 {[%clk 0:03:00.9]} 1... e5 {[%clk 0:02:59.1]} 2. Bb2 {[%clk 0:03:00.2]}
2... Nc6 {[%clk 0:03:00]} 3. c4 {[%clk 0:02:59.6]} 3... g6 {[%clk 0:02:59.5]} 4.
Nc3 {[%clk 0:02:58]} 4... Bg7 {[%clk 0:02:59.9]} 5. g3 {[%clk 0:02:58.6]} 5...
d6 {[%clk 0:02:59.5]} 6. Bg2 {[%clk 0:02:58.8]} 6... Be6 {[%clk 0:02:58.5]} 7.
a3 {[%clk 0:02:59.1]} 7... Nf6 {[%clk 0:02:57.2]} 8. Nd5 {[%clk 0:02:58.7]} 8...
Bxd5 {[%clk 0:02:55]} 9. cxd5 {[%clk 0:02:58.9]} 9... Ne7 {[%clk 0:02:55.3]} 10.
e4 {[%clk 0:02:59.3]} 10... c6 {[%clk 0:02:50.2]} 11. dxc6 {[%clk 0:02:58.3]}
11... Nxc6 {[%clk 0:02:51.1]} 12. Ne2 {[%clk 0:02:57.4]} 12... O-O {[%clk
0:02:50.2]} 13. O-O {[%clk 0:02:56.3]} 13... d5 {[%clk 0:02:50.8]} 14. d3 {[%clk
0:02:56.6]} 14... Re8 {[%clk 0:02:44.8]} 15. b4 {[%clk 0:02:55.5]} 15... a6
{[%clk 0:02:43.5]} 16. Rc1 {[%clk 0:02:54.8]} 16... Rc8 {[%clk 0:02:42.7]} 17.
Nc3 {[%clk 0:02:40.3]} 17... dxe4 {[%clk 0:02:35.5]} 18. dxe4 {[%clk 0:02:40]}
18... Nd4 {[%clk 0:02:35]} 19. Nd5 {[%clk 0:02:31.3]} 19... Rxc1 {[%clk
0:02:32.3]} 20. Bxc1 {[%clk 0:02:31.6]} 20... Nxd5 {[%clk 0:02:23.9]} 21. exd5
{[%clk 0:02:30.8]} 21... e4 {[%clk 0:02:07.9]} 22. Be3 {[%clk 0:02:30.8]} 22...
Qxd5 {[%clk 0:02:06]} 23. Bxd4 {[%clk 0:02:19.4]} 23... Qxd4 {[%clk 0:01:55.3]}
24. Qxd4 {[%clk 0:02:18.8]} 24... Bxd4 {[%clk 0:01:56.2]} 25. Re1 {[%clk
0:02:18.2]} 25... f5 {[%clk 0:01:54.1]} 26. Rd1 {[%clk 0:02:16.4]} 26... Bb2
{[%clk 0:01:35]} 27. a4 {[%clk 0:02:13.9]} 27... Re7 {[%clk 0:01:34.1]} 28. f3
{[%clk 0:02:07.5]} 28... e3 {[%clk 0:01:31]} 29. Kf1 {[%clk 0:02:06.8]} 29...
e2+ {[%clk 0:01:30.3]} 0-1

[Event "*** Titled Tuesday Blitz"]
[Site "Chess.com"]
[Date "2021.03.16"]
[Round "2"]
[White "Speed-O-Sonic"]
[Black "mitrabhaa"]
[Result "0-1"]
[WhiteElo "2355"]
[BlackElo "2696"]
[TimeControl "180+1"]
[EndTime "10:14:29 PDT"]
[Termination "mitrabhaa won by resignation"]

1. d4 {[%clk 0:03:00.9]} 1... Nf6 {[%clk 0:02:59.8]} 2. Bg5 {[%clk 0:03:00.7]}
2... c5 {[%clk 0:02:59.5]} 3. d5 {[%clk 0:03:00.7]} 3... b5 {[%clk 0:02:59]} 4.
Bxf6 {[%clk 0:02:40.7]} 4... gxf6 {[%clk 0:02:58.7]} 5. e4 {[%clk 0:02:41.1]}
5... b4 {[%clk 0:02:56.8]} 6. f4 {[%clk 0:02:30.9]} 6... Bb7 {[%clk 0:02:55.2]}
7. Nf3 {[%clk 0:02:30.9]} 7... d6 {[%clk 0:02:53.5]} 8. Bb5+ {[%clk 0:02:26.1]}
8... Nd7 {[%clk 0:02:53.6]} 9. e5 {[%clk 0:02:26.4]} 9... fxe5 {[%clk
0:02:51.4]} 10. fxe5 {[%clk 0:02:27.3]} 10... Qb6 {[%clk 0:02:46.8]} 11. Bxd7+
{[%clk 0:01:56.4]} 11... Kxd7 {[%clk 0:02:47.7]} 12. Ng5 {[%clk 0:01:31.4]}
12... dxe5 {[%clk 0:02:40.9]} 13. Qg4+ {[%clk 0:01:17.4]} 13... Ke8 {[%clk
0:02:39.8]} 14. O-O {[%clk 0:00:55.1]} 14... Rg8 {[%clk 0:02:29.2]} 15. Qf5
{[%clk 0:00:40.7]} 15... Qg6 {[%clk 0:02:28.5]} 16. g3 {[%clk 0:00:20.6]} 16...
Qxf5 {[%clk 0:02:24]} 17. Rxf5 {[%clk 0:00:21.5]} 17... Bc8 {[%clk 0:02:23.1]}
18. Rxe5 {[%clk 0:00:19.1]} 18... f6 {[%clk 0:02:23.3]} 0-1

[Event "*** Titled Tuesday Blitz"]
[Site "Chess.com"]
[Date "2021.03.16"]
[Round "2"]
[White "CSB7"]
[Black "ChrisTool2"]
[Result "1-0"]
[WhiteElo "2602"]
[BlackElo "2339"]
[TimeControl "180+1"]
[EndTime "10:14:33 PDT"]
[Termination "CSB7 won by resignation"]

1. d4 {[%clk 0:03:00.9]} 1... Nf6 {[%clk 0:02:59.8]} 2. Bf4 {[%clk 0:02:59.7]}
2... d5 {[%clk 0:02:57.9]} 3. e3 {[%clk 0:02:59.5]} 3... c5 {[%clk 0:02:58.2]}
4. c3 {[%clk 0:02:57.8]} 4... e6 {[%clk 0:02:58.7]} 5. Nf3 {[%clk 0:02:55]} 5...
Be7 {[%clk 0:02:59.3]} 6. Nbd2 {[%clk 0:02:54.6]} 6... O-O {[%clk 0:02:59.8]} 7.
Bd3 {[%clk 0:02:55]} 7... b6 {[%clk 0:03:00.4]} 8. Ne5 {[%clk 0:02:53]} 8...
Nfd7 {[%clk 0:02:57.8]} 9. h4 {[%clk 0:02:47.1]} 9... Nxe5 {[%clk 0:02:56.7]}
10. dxe5 {[%clk 0:02:16.5]} 10... Ba6 {[%clk 0:02:50.6]} 11. Nf3 {[%clk
0:02:07.3]} 11... Bxd3 {[%clk 0:02:48]} 12. Qxd3 {[%clk 0:02:08.2]} 12... Qc8
{[%clk 0:02:40.6]} 13. Ng5 {[%clk 0:02:03.8]} 13... Bxg5 {[%clk 0:02:34.8]} 14.
hxg5 {[%clk 0:02:03.1]} 14... g6 {[%clk 0:02:35.3]} 15. e4 {[%clk 0:01:52.1]}
15... dxe4 {[%clk 0:02:27.7]} 16. Qh3 {[%clk 0:01:50.4]} 16... h5 {[%clk
0:02:28.2]} 17. g4 {[%clk 0:01:39.3]} 17... Qa6 {[%clk 0:02:21]} 18. gxh5 {[%clk
0:01:34.7]} 18... Qd3 {[%clk 0:02:19.4]} 19. Be3 {[%clk 0:01:32.3]} 19... Rd8
{[%clk 0:01:57.6]} 20. hxg6 {[%clk 0:01:31.7]} 20... Kf8 {[%clk 0:01:55.3]} 21.
Qh8+ {[%clk 0:01:23.2]} 21... Ke7 {[%clk 0:01:51.8]} 22. Qf6+ {[%clk 0:01:22.1]}
22... Kd7 {[%clk 0:01:52.2]} 23. gxf7 {[%clk 0:01:16.3]} 23... Nc6 {[%clk
0:01:50.5]} 24. Rd1 {[%clk 0:01:13.6]} 24... c4 {[%clk 0:01:42.7]} 25. g6 {[%clk
0:01:09.8]} 25... Kc7 {[%clk 0:01:41.6]} 26. Rxd3 {[%clk 0:01:07.8]} 26... cxd3
{[%clk 0:01:40.5]} 27. g7 {[%clk 0:01:04.9]} 1-0